fUST/lending_fUST_20250602
["ID","MTS","AMOUNT","RATE_DAILY","PERIOD"]
[363774810,1748867454014,-2750.73239231,0.00021,2]
[363774854,1748867454425,-68.21248272,0.00021,2]
[363774856,1748867454440,-984.84,0.00021,2]
[363774876,1748867454630,-430.0,0.0001658,2]
[363774878,1748867454640,-430.0,0.00016846,2]
[363774880,1748867454650,-34863.46294324,0.00021,2]
[363774882,1748867454659,-2296.33847869,0.00021003,4]
[363774884,1748867454669,-5000.0,0.00021062,2]
[363774886,1748867454679,-223.23008639,0.00021068,2]
[363774888,1748867454688,-625.35,0.00021095,3]
[363774890,1748867454698,-1500.0,0.00021103,2]
[363774892,1748867454708,-600.0,0.00021119,2]
[363774894,1748867454718,-223.23008639,0.00021151,2]
[363774896,1748867454727,-573.35073581,0.00021163,2]
[363774898,1748867454737,-500.0,0.00021163,2]
[363774900,1748867454746,-297.64011515,0.00021205,2]
[363774902,1748867454756,-297.64011519,0.00021205,2]
[363774904,1748867454766,-2296.33847869,0.0002121,4]
[363774906,1748867454776,-500.0,0.00021214,2]
[363774908,1748867454786,-500.0,0.00021214,2]
[363774910,1748867454796,-500.0,0.00021214,2]
[363774912,1748867454806,-166.117519,0.0002123,2]
[363774914,1748867454815,-166.117519,0.0002123,2]
[363774916,1748867454825,-430.0,0.00021238,2]
[363774918,1748867454835,-360.09792283,0.00021238,2]
[363774921,1748867454853,-69.90207717,0.00021238,2]
[363774923,1748867454865,-568.44,0.00021238,2]
[363774925,1748867454875,-430.0,0.00021238,2]
[363774927,1748867454885,-409.55014939,0.00021238,2]
[363774929,1748867454895,-499.01,0.00021238,2]
[363774931,1748867454904,-1434.01,0.00021238,2]
[363774933,1748867454914,-968.43,0.00021238,2]
[363774935,1748867454923,-430.0,0.00021238,2]
[363774937,1748867454934,-430.0,0.00021238,2]
[363774939,1748867454944,-1999.35,0.00021238,2]
[363774941,1748867454954,-638.06,0.00021238,2]
[363774943,1748867454964,-577.79,0.00021238,2]
[363774945,1748867454973,-711.77,0.00021238,2]
[363774947,1748867454983,-2310.5,0.00021238,2]
[363774949,1748867454994,-430.0,0.00021238,2]
[363774951,1748867455003,-1289.68,0.00021238,2]
[363774953,1748867455014,-848.21,0.00021238,2]
[363774955,1748867455024,-790.63,0.00021238,2]
[363774957,1748867455034,-430.0,0.0002124,2]
[363774959,1748867455044,-554.0896104,0.0002124,2]
[363774962,1748867455057,-92.2203896,0.0002124,2]
[363774964,1748867455067,-735.58,0.0002124,2]
[363774966,1748867455078,-3715.11,0.0002124,2]
[363774968,1748867455088,-1859.18,0.0002124,2]
[363774970,1748867455097,-606.61,0.0002124,2]
[363774972,1748867455108,-495.3,0.0002124,2]
[363774974,1748867455118,-769.31,0.00021241,2]
[363774976,1748867455127,-223.23008639,0.0002126,2]
[363774978,1748867455137,-600.0,0.00021339,2]
[363774980,1748867455147,-223.23008639,0.0002137,2]
[363774982,1748867455156,-2036.43297428,0.00021416,2]
[363774984,1748867455166,-546.05424334,0.00021416,2]
[363774986,1748867455178,-1953.94575666,0.00021416,2]
[363774988,1748867455187,-3000.0,0.00021416,2]
[363774990,1748867455197,-2500.0,0.00021416,2]
[363774992,1748867455208,-2500.0,0.00021416,2]
[363774994,1748867455218,-840.67825308,0.00021416,2]
[363774996,1748867455228,-2296.33847869,0.00021417,5]
[363774998,1748867455238,-250.0,0.00021428,2]
[363775000,1748867455247,-2000.0,0.00021444,2]
[363775002,1748867455257,-223.23008639,0.00021452,2]
[363775004,1748867455267,-430.0,0.00021512,2]
[363775006,1748867455277,-430.0,0.00021512,2]
[363775008,1748867455287,-568.44,0.00021512,2]
[363775011,1748867455299,-430.0,0.00021512,2]
[363775014,1748867455319,-499.01,0.00021512,2]
[363775017,1748867455337,-1434.01,0.00021512,2]
[363775019,1748867455352,-968.43,0.00021512,2]
[363775022,1748867455369,-430.0,0.00021512,2]
[363775025,1748867455386,-481.42022875,0.00021512,2]
[363775028,1748867455407,-1999.35,0.00021512,2]
[363775030,1748867455426,-638.06,0.00021512,2]
[363775033,1748867455447,-577.79,0.00021512,2]
[363775036,1748867455464,-711.77,0.00021512,2]
[363775038,1748867455482,-2310.5,0.00021512,2]
[363775041,1748867455495,-497.47,0.00021512,2]
[363775043,1748867455511,-1289.68,0.00021512,2]
[363775046,1748867455528,-848.21,0.00021512,2]
[363775049,1748867455545,-790.63,0.00021512,2]
[363775052,1748867455563,-430.0,0.00021514,2]
[363775055,1748867455580,-646.31,0.00021514,2]
[363775057,1748867455593,-735.58,0.00021514,2]
[363775060,1748867455609,-3715.11,0.00021514,2]
[363775062,1748867455628,-1859.18,0.00021514,2]
[363775065,1748867455642,-606.61,0.00021514,2]
[363775067,1748867455656,-495.3,0.00021514,2]
[363775070,1748867455669,-769.31,0.00021515,2]
[363775072,1748867455682,-600.0,0.00021559,2]
[363775073,1748867455696,-223.23008639,0.00021562,2]
[363775074,1748867455711,-223.0315306,0.00021608,2]
[363775075,1748867455724,-5000.0,0.0002161,2]
[363775076,1748867455737,-823.0,0.0002162,2]
[363775077,1748867455750,-2296.33847869,0.00021624,5]
[363775078,1748867455764,-625.35,0.00021643,4]
[363775079,1748867455776,-285.71082714,0.00021651,2]
[363775080,1748867455789,-223.23008639,0.00021671,2]
[363775081,1748867455802,-166.117519,0.00021688,2]
[363775082,1748867455815,-166.117519,0.00021688,2]
[363775083,1748867455828,-41502.99918711,0.000217,2]
[363775085,1748867455841,-8785.80297612,0.000217,2]
[363775087,1748867455858,-10982.99243613,0.000217,2]
[363776206,1748867544372,-1515.0,0.000245,120]
[363776207,1748867570337,302.59,0.00024,120]
[363776208,1748867612267,3763.0,0.0002329,120]
[363776209,1748867612354,150.5,0.0002329,120]
[363776210,1748867612736,3763.0,0.0002328,120]
[363776211,1748867612803,150.5,0.0002328,120]
[363776212,1748867613301,275.06,0.0002327,120]
[363776213,1748867613343,3763.0,0.0002327,120]
[363776214,1748867614253,3763.0,0.0002329,120]
[363776215,1748867614713,3763.0,0.0002328,120]
[363776216,1748867615159,3763.0,0.0002327,120]
[363776217,1748867615611,3763.0,0.00023778,120]
[363776218,1748867616222,3763.0,0.00023768,120]
[363776219,1748867616670,3763.0,0.00023923,120]
[363776220,1748867617121,3767.1,0.00023913,120]
[363776221,1748867633556,7312.53995652,0.00024658,120]
[363776222,1748867703148,1160.75,0.00023,120]
[363776224,1748867731303,200.0,0.00024164,120]
[363776226,1748867768157,208.172615,0.00013699,2]
[363776227,1748867776846,9198.54080283,0.00015646,2]
[363776228,1748867776869,3567.05590147,0.00015646,2]
[363776229,1748867802154,164.31465426,0.00023898,120]
[363776230,1748867821259,5000.0,0.00016,2]
[363776231,1748867851044,200.0,0.00024527,120]
[363776233,1748867911301,200.0,0.00024237,120]
[363776234,1748867922023,164.31465425,0.00023898,120]
[363776235,1748867959229,-5000.0,0.00016316,2]
[363776236,1748867959254,-161.39128084,0.00016481,2]
[363776237,1748867959280,-300.0,0.00016571,2]
[363776238,1748867959303,-430.0,0.00016572,2]
[363776239,1748867959326,-430.0,0.00016572,2]
[363776240,1748867959350,-211.83135684,0.00016572,2]
[363776241,1748867959373,-430.0,0.00016572,2]
[363776242,1748867959394,-473.0,0.00016572,2]
[363776243,1748867959414,-436.62038587,0.00016572,2]
[363776244,1748867959435,-430.0,0.00016572,2]
[363776245,1748867959460,-452.75544499,0.00016572,2]
[363776246,1748867959485,-470.30056793,0.00016572,2]
[363776247,1748867959508,-439.340788,0.00016572,2]
[363776248,1748867959531,-430.0,0.00016572,2]
[363776249,1748867959553,-430.0,0.00016572,2]
[363776250,1748867959576,-430.0,0.00016572,2]
[363776251,1748867959599,-430.0,0.00016572,2]
[363776252,1748867959625,-430.0,0.00016572,2]
[363776253,1748867959648,-430.0,0.00016572,2]
[363776254,1748867959671,-430.0,0.00016572,2]
[363776255,1748867959696,-430.0,0.00016572,2]
[363776256,1748867959721,-430.0,0.00016572,2]
[363776257,1748867959743,-430.0,0.00016572,2]
[363776258,1748867959767,-235.95680202,0.00016572,2]
[363776259,1748867959791,-430.0,0.00016572,2]
[363776260,1748867959813,-430.0,0.00016572,2]
[363776261,1748867959836,-430.0,0.00016572,2]
[363776262,1748867959860,-430.0,0.00016572,2]
[363776263,1748867959882,-138.80337351,0.00016572,2]
[363776264,1748867971094,200.0,0.00022709,120]
[363776266,1748868030805,200.0,0.00023843,120]
[363776267,1748868088932,-1200.0,0.00016159,2]
[363776268,1748868088958,-300.0,0.00016159,2]
[363776269,1748868088981,-14385.99999901,0.0001616,2]
[363776270,1748868089005,-5000.0,0.00016406,2]
[363776271,1748868089029,-161.3912808,0.00016479,2]
[363776272,1748868089053,-430.0,0.00016572,2]
[363776273,1748868089077,-430.0,0.00016572,2]
[363776274,1748868089101,-430.0,0.00016572,2]
[363776275,1748868089124,-1000.0,0.00016572,2]
[363776276,1748868089149,-430.0,0.00016572,2]
[363776277,1748868089174,-430.0,0.00016572,2]
[363776278,1748868089200,-430.0,0.00016572,2]
[363776279,1748868089225,-1561.85927626,0.00016572,2]
[363776280,1748868089247,-500.0,0.00016573,2]
[363776281,1748868089273,-430.0,0.00016578,2]
[363776282,1748868089297,-164.69206621,0.00016578,2]
[363776283,1748868089320,-430.0,0.00016578,2]
[363776284,1748868089348,-430.0,0.00016579,2]
[363776285,1748868089374,-430.0,0.00016579,2]
[363776286,1748868089400,-772.44,0.00016579,2]
[363776287,1748868089428,-546.95,0.00016579,2]
[363776288,1748868089452,-106.66737772,0.00016579,2]
[363776296,1748868216337,4330.0,0.00016,2]
[363776302,1748868271502,2931.83041432,0.00016,2]
[363776303,1748868271526,3348.16958568,0.00016,2]
[363776327,1748868522743,6935.0,0.00024658,120]
[363776328,1748868626637,1055.2638157,0.00024657,120]
[363776352,1748868632070,-1228.17765162,0.00016241,2]
[363776353,1748868632082,-3771.82234838,0.00016241,2]
[363776354,1748868632092,-79.14330752,0.00016571,2]
[363776355,1748868632128,-220.85669248,0.00016571,2]
[363776356,1748868632139,-300.0,0.00016571,2]
[363776357,1748868632149,-430.0,0.00016572,2]
[363776358,1748868632159,-430.0,0.00016572,2]
[363776359,1748868632169,-430.0,0.00016572,2]
[363776360,1748868632179,-447.99541671,0.00016572,2]
[363776361,1748868632189,-430.0,0.00016572,2]
[363776362,1748868632199,-430.0,0.00016572,2]
[363776363,1748868632209,-430.0,0.00016572,2]
[363776364,1748868632219,-185.74958061,0.00016572,2]
[363776365,1748868632228,-433.49496449,0.00016572,2]
[363776366,1748868632238,-430.0,0.00016572,2]
[363776367,1748868632248,-430.0,0.00016572,2]
[363776368,1748868632258,-430.0,0.00016572,2]
[363776369,1748868632267,-1794.77784909,0.00016572,2]
[363776370,1748868632277,-430.0,0.00016577,2]
[363776371,1748868632286,-616.44703973,0.00016577,2]
[363776381,1748868635198,5000.0,0.00016,2]
[363776388,1748868638056,-183.71296027,0.00016577,2]
[363776389,1748868638066,-430.0,0.00016577,2]
[363776390,1748868638077,-1215.68,0.00016577,2]
[363776391,1748868638087,-430.0,0.00016577,2]
[363776392,1748868638106,-1631.06,0.00016577,2]
[363776393,1748868638120,-720.79,0.00016577,2]
[363776394,1748868638131,-198.04086735,0.00016578,2]
[363776395,1748868638142,-248.96000003,0.00016578,2]
[363776396,1748868638153,-323.33262228,0.00016578,2]
[363776397,1748868638163,-430.0,0.00016578,2]
[363776398,1748868638174,-1061.13,0.00016578,2]
[363776399,1748868638184,-430.0,0.00016578,2]
[363776400,1748868638194,-430.0,0.00016578,2]
[363776401,1748868638206,-430.0,0.00016578,2]
[363776402,1748868638216,-430.0,0.00016578,2]
[363776403,1748868638227,-430.0,0.00016578,2]
[363776404,1748868638237,-430.0,0.00016578,2]
[363776405,1748868638247,-430.0,0.00016578,2]
[363776406,1748868638258,-430.0,0.00016578,2]
[363776407,1748868638269,-430.0,0.00016578,2]
[363776408,1748868638279,-430.0,0.00016578,2]
[363776409,1748868638289,-325.37708043,0.00016578,2]
[363776410,1748868638307,-430.0,0.00016578,2]
[363776411,1748868638318,-430.0,0.00016578,2]
[363776412,1748868638329,-430.0,0.00016578,2]
[363776413,1748868638339,-431.27618514,0.00016578,2]
[363776414,1748868638350,-430.0,0.00016578,2]
[363776415,1748868638360,-197.33504809,0.00016578,2]
[363776416,1748868638373,-430.0,0.00016578,2]
[363776417,1748868638383,-1083.01,0.00016578,2]
[363776418,1748868638393,-430.0,0.00016578,2]
[363776419,1748868638403,-430.0,0.00016578,2]
[363776420,1748868638414,-430.0,0.00016578,2]
[363776421,1748868638425,-430.0,0.00016578,2]
[363776422,1748868638435,-430.0,0.00016578,2]
[363776423,1748868638445,-431.15,0.00016578,2]
[363776424,1748868638455,-447.1189379,0.00016578,2]
[363776425,1748868638465,-430.0,0.00016578,2]
[363776426,1748868638475,-430.0,0.00016578,2]
[363776427,1748868638486,-551.47404927,0.00016578,2]
[363776428,1748868638496,-500.0,0.00016579,2]
[363776429,1748868638506,-449.53,0.00016579,2]
[363776430,1748868638517,-2024.93,0.00016579,2]
[363776431,1748868638526,-448.68,0.00016579,2]
[363776432,1748868638537,-430.0,0.00016579,2]
[363776433,1748868638548,-430.0,0.00016579,2]
[363776434,1748868638558,-1334.6,0.00016579,2]
[363776435,1748868638568,-430.0,0.00016579,2]
[363776436,1748868638578,-430.0,0.00016846,2]
[363776437,1748868638587,-430.0,0.00016846,2]
[363776438,1748868638597,-430.0,0.00016846,2]
[363776439,1748868638608,-430.0,0.00016846,2]
[363776440,1748868638620,-430.0,0.00016846,2]
[363776441,1748868638631,-430.0,0.00016846,2]
[363776442,1748868638641,-430.0,0.00016851,2]
[363776443,1748868638652,-800.16,0.00016851,2]
[363776444,1748868638663,-430.0,0.00016851,2]
[363776445,1748868638673,-1215.68,0.00016851,2]
[363776446,1748868638684,-359.87506463,0.00016851,2]
[363776447,1748868638694,-1631.06,0.00016851,2]
[363776448,1748868638704,-720.79,0.00016851,2]
[363776449,1748868638714,-1061.13,0.00016852,2]
[363776450,1748868638724,-430.0,0.00016852,2]
[363776451,1748868638734,-430.0,0.00016852,2]
[363776452,1748868638744,-430.0,0.00016852,2]
[363776453,1748868638754,-430.0,0.00016852,2]
[363776454,1748868638764,-430.0,0.00016852,2]
[363776455,1748868638774,-430.0,0.00016852,2]
[363776456,1748868638784,-495.46546602,0.00016852,2]
[363776457,1748868638794,-1083.01,0.00016852,2]
[363776458,1748868638804,-430.0,0.00016852,2]
[363776459,1748868638818,-430.0,0.00016852,2]
[363776460,1748868638827,-430.0,0.00016852,2]
[363776461,1748868638837,-430.0,0.00016852,2]
[363776462,1748868638847,-430.0,0.00016852,2]
[363776463,1748868638858,-431.15,0.00016852,2]
[363776464,1748868638870,-430.0,0.00016852,2]
[363776465,1748868638880,-430.0,0.00016852,2]
[363776466,1748868638890,-449.53,0.00016853,2]
[363776467,1748868638901,-2024.93,0.00016853,2]
[363776468,1748868638914,-448.68,0.00016853,2]
[363776469,1748868638933,-430.0,0.00016853,2]
[363776470,1748868638943,-1334.6,0.00016853,2]
[363776471,1748868638953,-430.0,0.00016853,2]
[363776472,1748868638963,-226.48420718,0.00016903,2]
[363776473,1748868638972,-430.0,0.0001712,2]
[363776474,1748868638981,-430.0,0.0001712,2]
[363776475,1748868638991,-430.0,0.0001712,2]
[363776476,1748868639177,-430.0,0.00017125,2]
[363776477,1748868639187,-800.16,0.00017125,2]
[363776478,1748868639197,-430.0,0.00017125,2]
[363776479,1748868639208,-1215.68,0.00017125,2]
[363776480,1748868639217,-1631.06,0.00017125,2]
[363776481,1748868639227,-720.79,0.00017125,2]
[363776482,1748868639237,-1061.13,0.00017126,2]
[363776483,1748868639247,-430.0,0.00017126,2]
[363776484,1748868639257,-430.0,0.00017126,2]
[363776485,1748868639267,-430.0,0.00017126,2]
[363776486,1748868639277,-430.0,0.00017126,2]
[363776487,1748868639288,-430.0,0.00017126,2]
[363776489,1748868639298,-430.0,0.00017126,2]
[363776490,1748868639309,-1083.01,0.00017126,2]
[363776491,1748868639319,-419.09045789,0.00017126,2]
[363776492,1748868639329,-430.0,0.00017126,2]
[363776493,1748868639338,-430.0,0.00017126,2]
[363776494,1748868639348,-430.0,0.00017126,2]
[363776495,1748868639359,-430.0,0.00017126,2]
[363776496,1748868639370,-431.15,0.00017126,2]
[363776497,1748868639380,-430.0,0.00017126,2]
[363776498,1748868639391,-430.0,0.00017126,2]
[363776499,1748868639401,-449.53,0.00017127,2]
[363776500,1748868639411,-2024.93,0.00017127,2]
[363776501,1748868639421,-448.68,0.00017127,2]
[363776502,1748868639430,-430.0,0.00017127,2]
[363776503,1748868639440,-1334.6,0.00017127,2]
[363776504,1748868639450,-430.0,0.00017127,2]
[363776505,1748868639460,-430.0,0.00017394,2]
[363776507,1748868639470,-430.0,0.00017394,2]
[363776508,1748868639480,-430.0,0.00017394,2]
[363776509,1748868639490,-430.0,0.00017399,2]
[363776510,1748868639499,-800.16,0.00017399,2]
[363776511,1748868639509,-430.0,0.00017399,2]
[363776512,1748868639519,-1215.68,0.00017399,2]
[363776513,1748868639528,-1631.06,0.00017399,2]
[363776514,1748868639538,-720.79,0.00017399,2]
[363776515,1748868639548,-1061.13,0.000174,2]
[363776516,1748868639559,-430.0,0.000174,2]
[363776517,1748868639568,-430.0,0.000174,2]
[363776518,1748868639578,-430.0,0.000174,2]
[363776519,1748868639588,-430.0,0.000174,2]
[363776520,1748868639602,-430.0,0.000174,2]
[363776521,1748868639612,-430.0,0.000174,2]
[363776522,1748868639622,-1083.01,0.000174,2]
[363776523,1748868639632,-430.0,0.000174,2]
[363776524,1748868639642,-430.0,0.000174,2]
[363776525,1748868639652,-430.0,0.000174,2]
[363776526,1748868639662,-430.0,0.000174,2]
[363776527,1748868639672,-431.15,0.000174,2]
[363776528,1748868639682,-430.0,0.000174,2]
[363776529,1748868639692,-430.0,0.000174,2]
[363776530,1748868639702,-449.53,0.00017401,2]
[363776531,1748868639711,-2024.93,0.00017401,2]
[363776532,1748868639721,-448.68,0.00017401,2]
[363776533,1748868639731,-430.0,0.00017401,2]
[363776534,1748868639741,-1334.6,0.00017401,2]
[363776535,1748868639750,-430.0,0.00017401,2]
[363776536,1748868639760,-430.0,0.00017668,2]
[363776537,1748868639770,-430.0,0.00017668,2]
[363776538,1748868639779,-430.0,0.00017673,2]
[363776539,1748868639789,-800.16,0.00017673,2]
[363776540,1748868639799,-430.0,0.00017673,2]
[363776541,1748868639810,-1215.68,0.00017673,2]
[363776542,1748868639824,-1631.06,0.00017673,2]
[363776543,1748868639834,-720.79,0.00017673,2]
[363776544,1748868639845,-1061.13,0.00017674,2]
[363776546,1748868639857,-430.0,0.00017674,2]
[363776548,1748868639869,-430.0,0.00017674,2]
[363776550,1748868639882,-430.0,0.00017674,2]
[363776552,1748868639896,-430.0,0.00017674,2]
[363776554,1748868639907,-430.0,0.00017674,2]
[363776556,1748868639917,-430.0,0.00017674,2]
[363776558,1748868639928,-1083.01,0.00017674,2]
[363776560,1748868639938,-430.0,0.00017674,2]
[363776562,1748868639948,-430.0,0.00017674,2]
[363776564,1748868639958,-430.0,0.00017674,2]
[363776566,1748868639968,-430.0,0.00017674,2]
[363776568,1748868639979,-431.15,0.00017674,2]
[363776570,1748868639988,-430.0,0.00017674,2]
[363776572,1748868639998,-430.0,0.00017674,2]
[363776574,1748868640008,-449.53,0.00017675,2]
[363776576,1748868640017,-2024.93,0.00017675,2]
[363776578,1748868640027,-448.68,0.00017675,2]
[363776580,1748868640036,-430.0,0.00017675,2]
[363776582,1748868640045,-1334.6,0.00017675,2]
[363776584,1748868640055,-430.0,0.00017675,2]
[363776586,1748868640067,-399.38489475,0.0001785,2]
[363776589,1748868640077,-502.39560964,0.0001785,2]
[363776591,1748868640087,-500.0,0.0001785,2]
[363776593,1748868640097,-1499.30163388,0.000179,2]
[363776595,1748868640107,-638.62684712,0.00017919,2]
[363776597,1748868640118,-500.0,0.00017919,2]
[363776599,1748868640128,-500.0,0.00017919,2]
[363776601,1748868640139,-500.0,0.00017919,2]
[363776603,1748868640149,-430.0,0.00017942,2]
[363776605,1748868640160,-430.0,0.00017942,2]
[363776607,1748868640169,-490.17555459,0.00017947,2]
[363776609,1748868640179,-500.0,0.00017947,2]
[363776611,1748868640190,-500.0,0.00017947,2]
[363776613,1748868640200,-500.0,0.00017947,2]
[363776614,1748868640210,-500.0,0.00017947,2]
[363776615,1748868640219,-430.0,0.00017947,2]
[363776616,1748868640230,-800.16,0.00017947,2]
[363776617,1748868640240,-430.0,0.00017947,2]
[363776619,1748868640250,-1215.68,0.00017947,2]
[363776620,1748868640260,-1631.06,0.00017947,2]
[363776622,1748868640270,-720.79,0.00017947,2]
[363776624,1748868640279,-1061.13,0.00017948,2]
[363776626,1748868640290,-430.0,0.00017948,2]
[363776628,1748868640300,-430.0,0.00017948,2]
[363776631,1748868640310,-470.58815696,0.00017948,2]
[363776633,1748868640319,-430.0,0.00017948,2]
[363776635,1748868640329,-430.0,0.00017948,2]
[363776636,1748868640339,-430.0,0.00017948,2]
[363776638,1748868640349,-1083.01,0.00017948,2]
[363776640,1748868640359,-430.0,0.00017948,2]
[363776643,1748868640370,-430.0,0.00017948,2]
[363776645,1748868640381,-430.0,0.00017948,2]
[363776647,1748868640390,-430.0,0.00017948,2]
[363776649,1748868640400,-431.15,0.00017948,2]
[363776651,1748868640410,-430.0,0.00017948,2]
[363776653,1748868640420,-430.0,0.00017948,2]
[363776655,1748868640430,-449.53,0.00017949,2]
[363776657,1748868640440,-2024.93,0.00017949,2]
[363776659,1748868640450,-448.68,0.00017949,2]
[363776661,1748868640459,-430.0,0.00017949,2]
[363776663,1748868640478,-1334.6,0.00017949,2]
[363776665,1748868640490,-430.0,0.00017949,2]
[363776667,1748868640500,-500.0,0.00017995,2]
[363776669,1748868640509,-500.0,0.00018068,2]
[363776671,1748868640518,-1499.3016336,0.00018107,2]
[363776673,1748868640528,-420.0,0.00018107,2]
[363776675,1748868640538,-160.0,0.00018149,2]
[363776677,1748868640549,-842.5625,0.00018149,2]
[363776679,1748868640559,-160.0,0.00018149,2]
[363776681,1748868640568,-160.0,0.00018149,2]
[363776683,1748868640578,-212.83419937,0.00018149,2]
[363776685,1748868640588,-229.39799938,0.00018149,2]
[363776687,1748868640598,-12668.79298183,0.00018149,2]
[363776689,1748868640609,-160.0,0.00018149,2]
[363776691,1748868640621,-423.56953423,0.00018149,2]
[363776693,1748868640631,-573.99314315,0.00018216,2]
[363776695,1748868640642,-430.0,0.00018216,2]
[363776697,1748868640651,-430.0,0.00018221,2]
[363776699,1748868640661,-800.16,0.00018221,2]
[363776702,1748868640672,-430.0,0.00018221,2]
[363776704,1748868640681,-1215.68,0.00018221,2]
[363776706,1748868640692,-1631.06,0.00018221,2]
[363776708,1748868640703,-720.79,0.00018221,2]
[363776710,1748868640713,-1061.13,0.00018222,2]
[363776712,1748868640723,-430.0,0.00018222,2]
[363776714,1748868640732,-430.0,0.00018222,2]
[363776716,1748868640742,-430.0,0.00018222,2]
[363776718,1748868640752,-430.0,0.00018222,2]
[363776720,1748868640762,-430.0,0.00018222,2]
[363776722,1748868640772,-1083.01,0.00018222,2]
[363776724,1748868640781,-430.0,0.00018222,2]
[363776726,1748868640790,-430.0,0.00018222,2]
[363776728,1748868640800,-430.0,0.00018222,2]
[363776730,1748868640810,-430.0,0.00018222,2]
[363776732,1748868640824,-431.15,0.00018222,2]
[363776734,1748868640833,-430.0,0.00018222,2]
[363776736,1748868640843,-430.0,0.00018222,2]
[363776738,1748868640854,-449.53,0.00018223,2]
[363776740,1748868640863,-2024.93,0.00018223,2]
[363776742,1748868640874,-448.68,0.00018223,2]
[363776744,1748868640884,-430.0,0.00018223,2]
[363776746,1748868640894,-1334.6,0.00018223,2]
[363776748,1748868640904,-430.0,0.00018223,2]
[363776750,1748868640916,-500.0,0.00018285,2]
[363776752,1748868640925,-1499.3016336,0.00018314,2]
[363776754,1748868640935,-1000.0,0.00018398,2]
[363776756,1748868640945,-1000.0,0.00018467,2]
[363776758,1748868640954,-1000.0,0.00018467,2]
[363776760,1748868640963,-430.0,0.0001849,2]
[363776762,1748868640972,-170.13678427,0.00018494,2]
[363776764,1748868640981,-1000.0,0.00018495,2]
[363776766,1748868640990,-1000.0,0.00018495,2]
[363776768,1748868640999,-430.0,0.00018495,2]
[363776770,1748868641008,-800.16,0.00018495,2]
[363776772,1748868641017,-430.0,0.00018495,2]
[363776774,1748868641027,-1215.68,0.00018495,2]
[363776777,1748868641036,-1631.06,0.00018495,2]
[363776778,1748868641044,-720.79,0.00018495,2]
[363776781,1748868641053,-1061.13,0.00018496,2]
[363776783,1748868641062,-430.0,0.00018496,2]
[363776785,1748868641070,-430.0,0.00018496,2]
[363776787,1748868641079,-430.0,0.00018496,2]
[363776788,1748868641087,-430.0,0.00018496,2]
[363776790,1748868641096,-430.0,0.00018496,2]
[363776792,1748868641103,-1083.01,0.00018496,2]
[363776794,1748868641112,-430.0,0.00018496,2]
[363776796,1748868641121,-430.0,0.00018496,2]
[363776798,1748868641130,-430.0,0.00018496,2]
[363776800,1748868641140,-431.15,0.00018496,2]
[363776803,1748868641149,-430.0,0.00018496,2]
[363776805,1748868641159,-430.0,0.00018496,2]
[363776807,1748868641168,-449.53,0.00018497,2]
[363776809,1748868641178,-2024.93,0.00018497,2]
[363776811,1748868641189,-448.68,0.00018497,2]